fUSD/lending_fUSD_20260128
["ID","MTS","AMOUNT","RATE_DAILY","PERIOD"]
[403875294,1769616639200,-169.29192287,0.0004343,11]
[403875296,1769616639209,-1000.0,0.00043463,60]
[403875298,1769616639219,-5100.0,0.000435,36]
[403875300,1769616639228,-2360.0,0.000435,2]
[403875302,1769616639237,-253.0,0.000435,43]
[403875304,1769616639247,-210.06701736,0.00043508,7]
[403875306,1769616639256,-151.0,0.00043515,120]
[403875308,1769616639266,-151.0,0.00043515,120]
[403875310,1769616639275,-151.0,0.00043515,120]
[403875312,1769616639286,-151.0,0.00043515,120]
[403875314,1769616639295,-151.0,0.00043515,120]
[403875317,1769616639304,-151.0,0.00043515,120]
[403875319,1769616639313,-50000.0,0.00043517,51]
[403875321,1769616639323,-50000.0,0.00043517,53]
[403875323,1769616639332,-151.0,0.00043518,15]
[403875324,1769616639341,-151.0,0.00043518,15]
[403875326,1769616639350,-151.0,0.00043518,15]
[403875328,1769616639360,-151.0,0.00043518,15]
[403875330,1769616639369,-151.0,0.00043518,15]
[403875333,1769616639379,-151.0,0.00043518,15]
[403875335,1769616639388,-151.0,0.00043518,15]
[403875337,1769616639397,-151.0,0.00043518,15]
[403875339,1769616639406,-151.0,0.00043518,15]
[403875341,1769616639415,-151.0,0.00043518,15]
[403875342,1769616639424,-151.0,0.00043518,15]
[403875345,1769616639433,-151.0,0.00043518,15]
[403875346,1769616639442,-151.0,0.00043518,15]
[403875348,1769616639451,-291.43899,0.00043518,15]
[403875350,1769616639460,-151.0,0.00043518,120]
[403875352,1769616639469,-151.0,0.00043518,120]
[403875354,1769616639478,-151.0,0.00043518,120]
[403875356,1769616639487,-151.0,0.00043518,120]
[403875358,1769616639496,-151.0,0.00043518,120]
[403875360,1769616639505,-151.0,0.00043518,120]
[403875362,1769616639514,-207.533651,0.00043518,120]
[403875364,1769616639524,-151.0,0.00043518,120]
[403875366,1769616639533,-151.0,0.00043518,120]
[403875368,1769616639542,-151.0,0.00043518,120]
[403875370,1769616639551,-151.0,0.00043518,120]
[403875372,1769616639560,-151.0,0.00043518,120]
[403875374,1769616639569,-151.0,0.00043518,120]
[403875376,1769616639579,-151.0,0.00043518,120]
[403875378,1769616639588,-151.0,0.00043518,120]
[403875380,1769616639597,-151.0,0.00043518,120]
[403875382,1769616639606,-256.650133,0.00043518,120]
[403875384,1769616639615,-181.043503,0.00043518,120]
[403875386,1769616639624,-181.043503,0.00043518,120]
[403875388,1769616639633,-181.043503,0.00043518,120]
[403875390,1769616639643,-181.043503,0.00043518,120]
[403875392,1769616639652,-181.043503,0.00043518,120]
[403875394,1769616639662,-181.043503,0.00043518,120]
[403875396,1769616639671,-181.043503,0.00043518,120]
[403875398,1769616639680,-181.043503,0.00043518,120]
[403875400,1769616639690,-181.043503,0.00043518,120]
[403875402,1769616639699,-181.043503,0.00043518,120]
[403875404,1769616639708,-181.043503,0.00043518,120]
[403875406,1769616639717,-181.043503,0.00043518,120]
[403875408,1769616639727,-181.043503,0.00043518,120]
[403875410,1769616639736,-181.043503,0.00043518,120]
[403875412,1769616639746,-181.043503,0.00043518,120]
[403875414,1769616639756,-181.043503,0.00043518,120]
[403875416,1769616639765,-181.043503,0.00043518,120]
[403875418,1769616639774,-181.043503,0.00043518,120]
[403875420,1769616639784,-181.043503,0.00043518,120]
[403875422,1769616639792,-181.043507,0.00043518,120]
[403875424,1769616639801,-174.821563,0.00043518,120]
[403875426,1769616639811,-151.0,0.00043518,120]
[403875428,1769616639821,-151.0,0.00043518,120]
[403875430,1769616639830,-151.0,0.00043518,120]
[403875432,1769616639839,-151.0,0.00043518,120]
[403875434,1769616639849,-151.0,0.00043518,120]
[403875436,1769616639858,-151.0,0.00043518,120]
[403875438,1769616639867,-151.0,0.00043518,120]
[403875440,1769616639876,-151.0,0.00043518,120]
[403875442,1769616639885,-151.0,0.00043518,120]
[403875444,1769616639894,-151.0,0.00043518,120]
[403875445,1769616639906,-151.0,0.00043518,120]
[403875447,1769616639915,-151.0,0.00043518,120]
[403875449,1769616639924,-151.0,0.00043518,120]
[403875451,1769616639934,-151.0,0.00043518,120]
[403875453,1769616639943,-151.0,0.00043518,120]
[403875455,1769616639952,-210.393082,0.00043518,120]
[403875457,1769616639960,-151.0,0.00043518,120]
[403875460,1769616639970,-151.0,0.00043518,120]
[403875461,1769616639978,-151.0,0.00043518,120]
[403875463,1769616639987,-151.0,0.00043518,120]
[403875465,1769616639999,-151.0,0.00043518,120]
[403875468,1769616640009,-200.089464,0.00043518,120]
[403875469,1769616640018,-151.0,0.00043518,120]
[403875471,1769616640027,-151.0,0.00043518,120]
[403875473,1769616640038,-151.0,0.00043518,120]
[403875476,1769616640047,-151.0,0.00043518,120]
[403875477,1769616640056,-151.0,0.00043518,120]
[403875479,1769616640066,-151.0,0.00043518,120]
[403875481,1769616640076,-151.0,0.00043518,120]
[403875483,1769616640085,-151.0,0.00043518,120]
[403875485,1769616640095,-151.0,0.00043518,120]
[403875487,1769616640106,-151.0,0.00043518,120]
[403875489,1769616640118,-151.0,0.00043518,120]
[403875491,1769616640128,-202.132552,0.00043518,120]
[403875493,1769616640137,-151.0,0.00043518,120]
[403875495,1769616640147,-151.0,0.00043518,120]
[403875497,1769616640156,-151.0,0.00043518,120]
[403875499,1769616640165,-151.0,0.00043518,120]
[403875501,1769616640175,-157.133269,0.00043518,120]
[403875503,1769616640184,-267.870518,0.00043518,120]
[403875505,1769616640193,-267.870518,0.00043518,120]
[403875507,1769616640203,-267.870518,0.00043518,120]
[403875509,1769616640212,-267.870518,0.00043518,120]
[403875511,1769616640222,-267.870518,0.00043518,120]
[403875513,1769616640231,-267.870518,0.00043518,120]
[403875515,1769616640240,-267.870518,0.00043518,120]
[403875516,1769616640249,-267.870518,0.00043518,120]
[403875518,1769616640260,-267.870518,0.00043518,120]
[403875520,1769616640269,-267.870518,0.00043518,120]
[403875522,1769616640279,-267.870518,0.00043518,120]
[403875524,1769616640288,-267.870518,0.00043518,120]
[403875527,1769616640298,-267.870518,0.00043518,120]
[403875529,1769616640307,-267.870518,0.00043518,120]
[403875531,1769616640316,-267.870518,0.00043518,120]
[403875533,1769616640325,-267.870518,0.00043518,120]
[403875535,1769616640334,-267.870518,0.00043518,120]
[403875537,1769616640344,-267.870518,0.00043518,120]
[403875539,1769616640353,-267.870518,0.00043518,120]
[403875541,1769616640362,-267.870525,0.00043518,120]
[403875543,1769616640371,-151.0,0.00043518,120]
[403875545,1769616640380,-151.0,0.00043518,120]
[403875547,1769616640389,-151.0,0.00043518,120]
[403875549,1769616640398,-151.0,0.00043518,120]
[403875551,1769616640408,-151.0,0.00043518,120]
[403875553,1769616640417,-151.0,0.00043518,120]
[403875555,1769616640426,-151.0,0.00043518,120]
[403875557,1769616640435,-151.0,0.00043518,120]
[403875559,1769616640445,-151.0,0.00043518,120]
[403875561,1769616640454,-151.0,0.00043518,120]
[403875563,1769616640463,-151.0,0.00043518,120]
[403875565,1769616640472,-151.0,0.00043518,120]
[403875567,1769616640481,-151.0,0.00043518,120]
[403875569,1769616640492,-151.0,0.00043518,120]
[403875571,1769616640501,-151.0,0.00043518,120]
[403875573,1769616640510,-151.0,0.00043518,120]
[403875575,1769616640519,-151.0,0.00043518,120]
[403875577,1769616640528,-285.284692,0.00043518,120]
[403875579,1769616640537,-151.0,0.00043518,120]
[403875581,1769616640546,-151.0,0.00043518,120]
[403875583,1769616640556,-151.0,0.00043518,120]
[403875585,1769616640565,-151.0,0.00043518,120]
[403875587,1769616640574,-151.0,0.00043518,120]
[403875589,1769616640583,-151.0,0.00043518,120]
[403875591,1769616640593,-151.0,0.00043518,120]
[403875593,1769616640602,-179.439276,0.00043518,120]
[403875595,1769616640611,-244.351512,0.00043518,120]
[403875597,1769616640620,-151.0,0.00043518,120]
[403875599,1769616640629,-151.0,0.00043518,120]
[403875601,1769616640639,-151.0,0.00043518,120]
[403875603,1769616640648,-151.0,0.00043518,120]
[403875605,1769616640657,-152.231005,0.00043518,120]
[403875607,1769616640666,-151.0,0.00043518,120]
[403875609,1769616640675,-151.0,0.00043518,120]
[403875611,1769616640685,-151.0,0.00043518,7]
[403875613,1769616640694,-151.0,0.00043518,7]
[403875615,1769616640703,-151.0,0.00043518,7]
[403875617,1769616640712,-151.0,0.00043518,7]
[403875620,1769616640722,-151.0,0.00043518,120]
[403875621,1769616640731,-151.0,0.00043518,7]
[403875624,1769616640740,-151.0,0.00043518,120]
[403875626,1769616640749,-151.0,0.00043518,7]
[403875627,1769616640759,-267.544752,0.00043518,120]
[403875629,1769616640769,-151.0,0.00043518,7]
[403875631,1769616640778,-151.0,0.00043518,7]
[403875633,1769616640788,-151.0,0.00043518,7]
[403875635,1769616640797,-151.0,0.00043518,7]
[403875637,1769616640806,-151.0,0.00043518,7]
[403875639,1769616640816,-231.1428236,0.00043518,7]
[403875641,1769616640825,-151.0,0.00043518,120]
[403875643,1769616640834,-151.0,0.00043518,120]
[403875645,1769616640843,-151.0,0.00043518,120]
[403875647,1769616640852,-151.0,0.00043518,120]
[403875650,1769616640861,-151.0,0.00043518,120]
[403875652,1769616640871,-151.0,0.00043518,120]
[403875653,1769616640880,-151.0,0.00043518,120]
[403875656,1769616640889,-151.0,0.00043518,120]
[403875658,1769616640899,-151.0,0.00043518,120]
[403875660,1769616640909,-151.0,0.00043518,120]
[403875661,1769616640918,-151.0,0.00043518,120]
[403875663,1769616640927,-151.0,0.00043518,120]
[403875666,1769616640936,-151.0,0.00043518,120]
[403875668,1769616640946,-151.0,0.00043518,120]
[403875670,1769616640955,-288.733919,0.00043518,120]
[403875672,1769616640965,-944.771478,0.00043518,120]
[403875674,1769616640974,-944.771478,0.00043518,120]
[403875676,1769616640983,-944.771478,0.00043518,120]
[403875678,1769616640997,-944.771478,0.00043518,120]
[403875681,1769616641007,-944.771478,0.00043518,120]
[403875684,1769616641016,-944.771478,0.00043518,120]
[403875687,1769616641025,-944.771478,0.00043518,120]
[403875690,1769616641035,-944.771478,0.00043518,120]
[403875693,1769616641044,-944.771478,0.00043518,120]
[403875696,1769616641053,-944.771478,0.00043518,120]
[403875699,1769616641064,-944.771478,0.00043518,120]
[403875702,1769616641074,-944.771478,0.00043518,120]
[403875705,1769616641083,-944.771478,0.00043518,120]
[403875708,1769616641093,-944.771478,0.00043518,120]
[403875711,1769616641102,-944.771478,0.00043518,120]
[403875714,1769616641111,-944.771478,0.00043518,120]
[403875717,1769616641121,-944.771478,0.00043518,120]
[403875720,1769616641130,-944.771478,0.00043518,120]
[403875722,1769616641140,-944.771478,0.00043518,120]
[403875724,1769616641150,-944.771488,0.00043518,120]
[403875727,1769616641160,-151.0,0.00043518,28]
[403875729,1769616641171,-151.0,0.00043518,28]
[403875731,1769616641179,-151.0,0.00043518,120]
[403875733,1769616641189,-151.0,0.00043518,120]
[403875735,1769616641198,-151.0,0.00043518,120]
[403875737,1769616641207,-287.434662,0.00043518,120]
[403875739,1769616641217,-200.0,0.00043518,120]
[403875741,1769616641226,-200.0,0.00043518,120]
[403875743,1769616641236,-151.0,0.00043518,120]
[403875745,1769616641246,-151.0,0.00043518,120]
[403875747,1769616641256,-151.0,0.00043518,120]
[403875749,1769616641265,-199.700202,0.00043518,120]
[403875751,1769616641274,-151.0,0.00043518,120]
[403875753,1769616641284,-151.0,0.00043518,120]
[403875755,1769616641293,-151.0,0.00043518,120]
[403875757,1769616641302,-151.0,0.00043518,120]
[403875759,1769616641311,-151.0,0.00043518,120]
[403875761,1769616641321,-153.707188,0.00043518,120]
[403875763,1769616641330,-151.0,0.00043518,120]
[403875765,1769616641340,-151.0,0.00043518,120]
[403875767,1769616641349,-151.0,0.00043518,120]
[403875769,1769616641360,-151.0,0.00043518,120]
[403875771,1769616641369,-151.0,0.00043518,120]
[403875773,1769616641379,-151.0,0.00043518,120]
[403875775,1769616641388,-151.0,0.00043518,120]
[403875777,1769616641397,-151.0,0.00043518,120]
[403875779,1769616641406,-151.0,0.00043518,120]
[403875781,1769616641415,-156.363135,0.00043518,120]
[403875783,1769616641425,-151.0,0.00043518,120]
[403875785,1769616641434,-223.55708,0.00043518,120]
[403875787,1769616641443,-235.858068,0.00043518,120]
[403875789,1769616641453,-151.0,0.00043518,90]
[403875791,1769616641462,-151.0,0.00043518,120]
[403875793,1769616641471,-151.0,0.00043518,120]
[403875795,1769616641481,-177.504514,0.00043518,120]
[403875797,1769616641490,-151.0,0.00043518,14]
[403875799,1769616641500,-151.0,0.00043518,120]
[403875801,1769616641509,-151.0,0.00043518,120]
[403875803,1769616641519,-151.0,0.00043518,120]
[403875805,1769616641528,-151.0,0.00043518,120]
[403875807,1769616641538,-151.0,0.00043518,120]
[403875809,1769616641547,-151.0,0.00043518,120]
[403875811,1769616641556,-151.0,0.00043518,120]
[403875813,1769616641565,-151.0,0.00043518,120]
[403875815,1769616641574,-151.0,0.00043518,120]
[403875817,1769616641584,-151.0,0.00043518,120]
[403875819,1769616641593,-51951.91876964,0.00043518,60]
[403875821,1769616641606,-1234.81399869,0.00043518,120]
[403875823,1769616641615,-2487896.77284666,0.00043518,10]
[403875836,1769616641858,-1433.40236792,0.00041076,28]
[403875837,1769616641868,-151.0,0.00043518,120]
[403875839,1769616641878,-182.961732,0.00043518,120]
[403875841,1769616641887,-2430728.11391159,0.00043518,10]
[403875846,1769616641924,-1340.87088808,0.0004246,2]
[403875848,1769616641935,-895.39880055,0.0004246,2]
[403875851,1769616641946,-1477.74431576,0.0004246,2]
[403876349,1769616648010,-572.19536415,0.00041857,28]
[403876350,1769616648028,-861.20700377,0.00041857,28]
[403876351,1769616648038,-4877.20599561,0.0004246,2]
[403876352,1769616648048,-412.89803906,0.00043518,10]
[403876353,1769616648061,-1693.19277323,0.00043518,10]
[403876359,1769616667564,150.32412859,0.00016206,30]
[403876360,1769616670638,193.0,0.00016206,120]
[403876361,1769616672716,2500.0,0.00016206,120]
[403876362,1769616672828,2500.0,0.00015955,120]
[403876363,1769616673721,600.0,0.00016206,120]
[403876364,1769616673902,600.0,0.00015955,120]
[403876413,1769617449988,150.0,0.00021,60]
[403876417,1769617493185,150.0,0.00021,120]
[403876429,1769617546345,150.0,0.00021,90]
[403876431,1769617559589,927.82619798,8e-05,2]
[403876441,1769617632969,1526.62657766,0.0001305,2]
[403876446,1769617715329,5679.46091701,0.0001,2]
[403876819,1769617832465,-300.0,0.00013989,2]
[403876820,1769617832475,-320.98453335,0.00013989,2]
[403876821,1769617832487,-879.01546665,0.00013989,2]
[403876822,1769617832497,-265.0,0.00013989,2]
[403876823,1769617832506,-250.0,0.0001399,2]
[403876824,1769617832516,-16.12973695,0.0001399,2]
[403876828,1769617838658,-13271.65939327,0.0001399,2]
[403876829,1769617838668,-600.0,0.00014731,2]
[403876830,1769617838678,-300.0,0.00014731,2]
[403876831,1769617838688,-420.0,0.00015326,2]
[403876832,1769617838698,-250.0,0.00015388,2]
[403876833,1769617838708,-1680.0,0.00015388,2]
[403876834,1769617838717,-1000.0,0.00016087,2]
[403876835,1769617838727,-151.0,0.00016124,2]
[403876836,1769617838737,-151.0,0.00016124,2]
[403876837,1769617838747,-500.0,0.00016169,2]
[403876838,1769617838757,-5000.0091523,0.000162,5]
[403876839,1769617838767,-600.0,0.00016204,2]
[403876840,1769617838776,-300.0,0.00016204,2]
[403876841,1769617838786,-433.0,0.00016372,2]
[403876842,1769617838796,-500.0,0.00016373,2]
[403876843,1769617838806,-500.0,0.00016373,2]
[403876844,1769617838816,-500.0,0.00016373,2]
[403876845,1769617838830,-501.35548304,0.00016373,2]
[403876846,1769617838840,-500.0,0.00016373,2]
[403876847,1769617838850,-500.0,0.00016373,2]
[403876848,1769617838860,-500.0,0.00016373,2]
[403876849,1769617838871,-500.0,0.00016373,2]
[403876850,1769617838882,-613.07928255,0.00016373,2]
[403876851,1769617838899,-500.0,0.00016373,2]
[403876852,1769617838918,-500.0,0.00016373,2]
[403876853,1769617838929,-420.10334993,0.00016373,2]
[403876854,1769617838940,-500.0,0.00016373,2]
[403876855,1769617838950,-213.21231581,0.00016438,2]
[403876856,1769617838960,-500.0,0.00016438,2]
[403876858,1769617838971,-237.0,0.00016519,2]
[403876859,1769617838981,-237.0,0.0001659,2]
[403876861,1769617838992,-1000.0,0.0001669,2]
[403876864,1769617839002,-587.0,0.00016791,2]
[403876865,1769617839013,-237.0,0.00016841,2]
[403876868,1769617839023,-500.0,0.00016921,2]
[403876869,1769617839033,-500.0,0.00016921,2]
[403876872,1769617839043,-500.0,0.00016921,2]
[403876874,1769617839056,-500.0,0.00016921,2]
[403876876,1769617839066,-766.61872265,0.00016921,2]
[403876878,1769617839076,-1000.0,0.00016921,2]
[403876880,1769617839087,-1000.0,0.00016921,2]
[403876882,1769617839097,-1000.0,0.00016921,2]
[403876884,1769617839107,-1000.0,0.00016921,2]
[403876886,1769617839117,-1000.0,0.00016921,2]
[403876888,1769617839127,-2351.0,0.00016927,2]
[403876890,1769617839138,-237.0,0.00017067,2]
[403876892,1769617839149,-237.0,0.00017256,2]
[403876894,1769617839160,-237.0,0.00017281,2]
[403876896,1769617839170,-1000.0,0.00017294,2]
[403876898,1769617839180,-237.0,0.00017369,2]
[403876900,1769617839190,-1500.0,0.00017468,2]
[403876902,1769617839199,-237.0,0.00017528,2]
[403876904,1769617839210,-227.08,0.00017634,2]
[403876906,1769617839220,-237.0,0.0001772,2]
[403876908,1769617839230,-1000.0,0.00017897,2]
[403876910,1769617839239,-7156.67428357,0.000179,2]
[403876912,1769617839256,-3964.50136432,0.000179,2]
[403876914,1769617839266,-150.00034026,0.000179,2]
[403876916,1769617839275,-157759.29185039,0.000179,2]
[403876918,1769617839287,-1236.79220836,0.000179,2]
[403876920,1769617839296,-237.0,0.00017911,2]
[403876923,1769617839308,-237.0,0.00017917,2]
[403876924,1769617839321,-875.49,0.0001799,3]
[403876926,1769617839331,-152.22,0.0001799,2]
[403876928,1769617839341,-152.22,0.0001799,2]
[403876930,1769617839351,-152.22,0.0001799,2]
[403876932,1769617839360,-233.40779707,0.0001799,2]
[403876934,1769617839370,-233.40779707,0.0001799,2]
[403876936,1769617839379,-233.40779707,0.0001799,2]
[403876938,1769617839390,-1076.99786911,0.00017999,2]
[403876940,1769617839400,-1000.0,0.00017999,2]
[403876942,1769617839409,-150.0,0.00017999,2]
[403876944,1769617839419,-150.0,0.00017999,2]
[403876946,1769617839429,-150.0,0.00017999,2]
[403876948,1769617839439,-500.0,0.00017999,2]
[403876950,1769617839449,-500.0,0.00017999,2]
[403876953,1769617839464,-500.0,0.00017999,2]
[403876956,1769617839478,-500.0,0.00017999,2]
[403876958,1769617839490,-326.56034937,0.00017999,2]
[403876960,1769617839499,-225.72804687,0.00017999,2]
[403876962,1769617839509,-5438003.56430073,0.00018,2]
[403876964,1769617839519,-1277035.94094295,0.00018,2]
[403877095,1769617840764,-2434.24970126,0.00018,2]
[403877097,1769617840775,-500.78571235,0.00018,2]
[403877099,1769617840787,-26471.00000003,0.00018,2]
[403877132,1769617841098,-237.0,0.00016951,2]
[403877135,1769617841109,-267.48150211,0.00018,2]
[403877139,1769617841142,-35514.90000001,0.00018,2]
[403877141,1769617841153,-70327.86557754,0.00018,2]
[403877143,1769617841165,-828.56089468,0.00018,2]
[403877146,1769617841176,-3608.27472446,0.00018,2]
[403877148,1769617841192,-131234.43128365,0.00018,2]
[403877150,1769617841202,-505.0,0.00018,2]
[403877152,1769617841211,-5051657.34948941,0.00018,2]
[403877154,1769617841223,-1850.81274889,0.00018,2]
[403877500,1769617846226,-237.0,0.00017288,2]
[403877501,1769617846236,-160.71079692,0.000179,2]
[403877502,1769617846247,-13143.79135308,0.00018,2]
[403877504,1769617846701,-3848.68264906,0.00018,2]
[403877505,1769617846713,-1087.39525735,0.00018,2]
[403877514,1769617847095,-10792.78105901,0.00018,2]
[403877526,1769619031422,-177.842387,0.00015888,2]
[403877527,1769619031432,-283.0,0.00015888,2]
[403877528,1769619031443,-151.0,0.00015926,2]
[403877529,1769619031453,-85.49196466,0.00015926,2]
[403877530,1769619031465,-65.50803534,0.00015926,2]
[403877531,1769619031475,-151.0,0.00015943,2]
[403877532,1769619031484,-151.0,0.00015943,2]
[403877533,1769619031493,-2565.42101194,0.00016,2]
[403877534,1769619031505,-630.75339574,0.00016,2]
[403877535,1769619031518,-29964.98859232,0.00016,2]
[403877536,1769619031527,-150.00211084,0.0001606,2]
[403877537,1769619031536,-177.842387,0.00016097,2]
[403877538,1769619031546,-228.59224456,0.00016099,2]
[403877539,1769619031555,-64493.68617268,0.000161,2]
[403877540,1769619031581,-500.0,0.000161,2]
[403877683,1769619037484,-151.0,0.00015943,2]
[403877684,1769619037493,-140306.73033468,0.000161,2]
[403877685,1769619037503,-166.66,0.00016197,2]
[403877686,1769619037513,-51932.9,0.00016299,2]
[403877687,1769619037522,-189.07263714,0.00016338,2]
[403877688,1769619037531,-1852.42,0.00016367,2]
[403877689,1769619037542,-472.01625507,0.00016373,2]
[403877690,1769619037552,-500.0,0.00016373,2]
[403877691,1769619037561,-500.0,0.00016373,2]
[403877692,1769619037570,-500.0,0.00016373,2]
[403877693,1769619037579,-500.0,0.00016373,2]
[403877694,1769619037589,-500.0,0.00016373,2]
[403877695,1769619037599,-500.0,0.00016373,2]
[403877696,1769619037608,-500.0,0.00016373,2]
[403877697,1769619037617,-500.0,0.00016373,2]
[403877698,1769619037626,-500.0,0.00016373,2]
[403877699,1769619037635,-500.0,0.00016373,2]
[403877700,1769619037645,-500.0,0.00016373,2]
[403877701,1769619037654,-500.0,0.00016373,2]
[403877702,1769619037667,-500.0,0.00016373,2]
[403877703,1769619037677,-507.95507628,0.00016373,2]
[403877704,1769619037686,-296.21047784,0.00016438,2]
[403877705,1769619037696,-200.0,0.00016476,2]
[403877706,1769619037706,-166.66,0.00016538,2]
[403877707,1769619037716,-237.0,0.00016594,2]
[403877708,1769619037725,-1183.82,0.00016732,2]
[403877709,1769619037736,-237.0,0.00016746,2]
[403877710,1769619037745,-237.0,0.00016751,2]
[403877711,1769619037754,-166.66,0.00016879,2]
[403877712,1769619037763,-1000.0,0.00016921,2]
[403877713,1769619037772,-1000.0,0.00016921,2]
[403877714,1769619037781,-1000.0,0.00016921,2]
[403877715,1769619037790,-1000.0,0.00016921,2]
[403877716,1769619037799,-1000.0,0.00016921,2]
[403877717,1769619037809,-1019.79945563,0.00016921,2]
[403877718,1769619037818,-409.91910471,0.00016921,2]
[403877719,1769619037827,-1000.0,0.00016921,2]
[403877720,1769619037836,-250.0,0.00017,2]
[403877721,1769619037845,-237.0,0.0001704,2]
[403877722,1769619037854,-237.0,0.00017201,2]
[403877723,1769619037864,-237.0,0.00017208,2]
[403877724,1769619037873,-166.66,0.0001722,2]
[403877726,1769619037882,-237.0,0.00017383,2]
[403877728,1769619037891,-150.00211084,0.00017408,2]
[403877730,1769619037900,-1500.0,0.00017468,2]
[403877732,1769619037910,-166.66,0.00017561,2]
[403877734,1769619037919,-1183.82,0.00017568,2]
[403877736,1769619037927,-1822.56,0.00017634,2]
[403877738,1769619037936,-150.0,0.00017634,2]
[403877740,1769619037950,-669.69,0.00017634,2]
[403877742,1769619037959,-237.0,0.00017763,2]
[403877744,1769619037968,-500.0,0.00017899,2]
[403877746,1769619037977,-457.26972389,0.00017899,2]
[403877748,1769619037986,-1000.0,0.000179,2]
[403877750,1769619037995,-182.09590533,0.000179,2]
[403877752,1769619038005,-171.36508154,0.000179,2]
[403877754,1769619038014,-623.97102747,0.000179,2]
[403877756,1769619038023,-166.66,0.00017902,2]
[403877758,1769619038032,-165.31,0.00017989,2]
[403877760,1769619038041,-165.31,0.0001799,2]
[403877762,1769619038050,-165.31,0.0001799,2]
[403877764,1769619038059,-165.31,0.0001799,2]
[403877766,1769619038068,-165.31,0.0001799,2]
[403877768,1769619038082,-151.0,0.00017997,2]
[403877770,1769619038092,-500.0,0.00017998,2]
[403877772,1769619038101,-500.0,0.00017998,2]
[403877774,1769619038111,-138231.0955203,0.00017999,2]
[403877776,1769619038120,-500.0,0.00017999,2]
[403877778,1769619038130,-500.0,0.00017999,2]
[403877781,1769619038141,-500.0,0.00017999,2]
[403877783,1769619038152,-500.0,0.00017999,2]
[403877784,1769619038162,-500.0,0.00017999,2]
[403877786,1769619038173,-500.0,0.00017999,2]
[403877788,1769619038183,-500.0,0.00017999,2]
[403877790,1769619038192,-568.58467958,0.00017999,2]
[403877792,1769619038202,-150.0,0.00017999,2]
[403877794,1769619038211,-150.0,0.00017999,2]
[403877796,1769619038221,-907401.31600272,0.00018,2]
[403877799,1769619038235,-2625.30000433,0.00018,2]
[403877804,1769619038270,-867.29626824,0.00018,2]
[403877806,1769619038281,-2615.92995068,0.00018,2]
[403877953,1769619039584,-151.0,0.00015937,2]
[403877955,1769619039594,-117.989,0.00018,2]
[403877975,1769619039896,-2659.561022,0.00018,2]
[403877977,1769619039913,-255.70327465,0.00018,2]
[403878287,1769619043987,-18999.4532229,0.00018,2]
[403878301,1769619044975,-11653.57608574,0.00018,2]
[403878302,1769619045028,-11.4713994,0.00018,2]
[403878303,1769619045039,-21906.02814932,0.00018,2]
[403878322,1769619045489,-1166.43152022,0.00018,2]
[403878323,1769619045756,-446.19639751,0.00018,2]
[403878335,1769619674893,161.65,0.00013744,2]
[403878336,1769620075318,-1035.0,0.00015899,2]
[403878337,1769620075340,-300.0,0.00015899,2]
[403878338,1769620075365,-72878.5114,0.000159,2]
[403878339,1769620075386,-283.0,0.000159,2]